bitfinex-derivatives/quotes_SOLF0:USTF0_20241231
["timestamp","ask_amount","ask_price","bid_price","bid_amount"]
[1735687942851,2.638,189.89,189.86,3.24]
[1735687945259,2.638,189.89,189.86,5.8783]
[1735687945455,21.40418813,190.01,189.87,7.68613924]
[1735687945667,7.68613924,189.95,189.89,7.68613924]
[1735687945966,7.68613924,189.95,189.9,2.6377]
[1735687946263,2.6373,189.94,189.91,3.24]
[1735687947262,7.68613924,189.95,189.91,3.24]
[1735687947462,2.6374,189.93,189.91,3.24]
[1735687950766,7.68613924,189.93,189.85,4.7638]
[1735687951066,2.6381,189.88,189.85,8.0238]
[1735687951760,2.6381,189.88,189.85,10.6623]
[1735687953069,2.6383,189.86,189.85,4.7638]
[1735687953268,2.6383,189.86,189.85,8.0238]
[1735687954264,2.6383,189.86,189.85,3.1587]
[1735687954468,7.68613924,189.87,189.74,1.4978]
[1735687954664,7.68613924,189.84,189.77,7.68613924]
[1735687954866,7.68613924,189.84,189.77,10.32573924]
[1735687955068,2.6392,189.81,189.77,10.32573924]
[1735687957463,7.68613924,189.84,189.77,10.94613924]
[1735687957767,7.68613924,189.82,189.75,9.25803924]
[1735687958164,2.6396,189.78,189.75,9.25803924]
[1735687958365,7.68613924,189.82,189.75,9.25803924]
[1735687958868,7.68613924,189.8,189.61,92.66289928]
[1735687959067,7.68613924,189.8,189.73,10.32623924]
[1735687959271,2.6397,189.77,189.73,10.32623924]
[1735687959769,2.6397,189.77,189.74,2.64]
[1735687959969,2.6395,189.78,189.74,2.64]
[1735687960165,7.68613924,189.8,189.74,2.64]
[1735687960472,7.68613924,189.8,189.73,10.32623924]
[1735687960863,2.6396,189.77,189.73,10.32623924]
[1735687962268,2.6396,189.77,189.73,2.6401]
[1735687962469,2.6396,189.77,189.73,10.32623924]
[1735687963069,7.68613924,189.8,189.65,4.7708]
[1735687963373,7.68613924,189.78,189.7,7.68613924]
[1735687963668,2.6401,189.74,189.71,3.26]
[1735687963872,7.68613924,189.78,189.7,2.6404]
[1735687964169,7.68613924,189.78,189.7,10.32653924]
[1735687964568,2.6401,189.74,189.7,10.32653924]
[1735687965467,2.6401,189.74,189.71,2.6404]
[1735687965772,2.64,189.74,189.7,7.68613924]
[1735687965977,2.64,189.74,189.71,2.6404]
[1735687968377,3.26,189.82,189.75,2.6399]
[1735687968578,7.68613924,189.79,189.75,2.6399]
[1735687969575,2.6395,189.78,189.75,2.6399]
[1735687969978,7.68613924,189.79,189.75,2.6399]
[1735687970167,10.32553924,189.79,189.75,2.6399]
[1735687972077,2.6395,189.78,189.75,2.6399]
[1735687972578,7.68613924,189.79,189.75,2.6399]
[1735687972772,2.6394,189.79,189.75,2.6399]
[1735687974073,2.6397,189.77,189.74,3.26]
[1735687974477,7.68613924,189.8,189.74,3.26]
[1735687974781,2.6396,189.78,189.74,5.9]
[1735687978185,2.6395,189.78,189.74,5.8999]
[1735687979273,2.6395,189.78,189.75,2.6399]
[1735687981079,7.68613924,189.8,189.75,2.6399]
[1735687981289,21.40418813,189.89,189.78,7.68613924]
[1735687981481,7.68613924,189.85,189.79,3.24]
[1735687981881,10.32463924,189.85,189.81,2.6389]
[1735687983382,7.68613924,189.85,189.79,3.24]
[1735687983587,7.68613924,189.89,189.8,7.68613924]
[1735687983887,7.68613924,189.89,189.82,7.68613924]
[1735687984785,10.32413924,189.89,189.85,2.6384]
[1735687984980,10.32413924,189.89,189.85,5.8784]
[1735687985685,2.6381,189.88,189.85,3.24]
[1735687985985,7.68613924,189.89,189.85,3.24]
[1735687986386,7.68613924,189.87,189.69,5.73916239]
[1735687986584,7.68613924,189.76,189.7,3.0777]
[1735687986786,2.64,189.74,189.7,3.0777]
[1735687987485,2.64,189.74,189.7,5.7183]
[1735687987687,2.6399,189.75,189.71,3.24]
[1735687988290,7.68613924,189.76,189.72,3.24]
[1735687988487,2.6401,189.74,189.72,3.24]
[1735687988884,2.6401,189.74,189.7,3.0777]
[1735687988885,7.68613924,189.76,189.7,3.0777]
[1735687989180,2.6401,189.74,189.7,6.3177]
[1735687989597,7.68613924,189.74,189.7,3.0777]
[1735687989796,2.6403,189.73,189.7,6.3177]
[1735687991098,2.64,189.74,189.7,8.9583]
[1735687991295,12.03130819,189.77,189.7,6.3177]
[1735687991599,12.03130819,189.8,189.7,6.3177]
[1735687992498,2.6399,189.75,189.71,2.6404]
[1735687993099,2.6397,189.76,189.72,2.6402]
[1735687993698,2.6397,189.77,189.73,2.6401]
[1735687993899,2.6397,189.77,189.7,6.3177]
[1735687994090,12.03130819,189.8,189.7,6.3177]
[1735687994890,2.6397,189.77,189.72,2.6402]
[1735687995401,12.03130819,189.8,189.72,2.6402]
[1735687996098,2.6397,189.77,189.72,2.6402]
[1735687997002,2.6398,189.76,189.72,2.6402]
[1735687998698,21.40418813,189.85,189.73,12.03130819]
[1735687998900,21.40418813,189.85,189.76,12.03130819]
[1735687999204,21.40418813,189.85,189.84,2.6386]
[1735687999401,18.93938813,189.85,189.84,5.8786]
[1735687999598,18.93938813,189.87,189.84,5.8786]
[1735688000301,21.57758813,189.87,189.84,5.8786]
[1735688000500,21.57758813,189.87,189.84,3.24]
[1735688000895,2.6382,189.87,189.84,3.24]
[1735688001198,3.69139681,189.88,189.84,5.8786]
[1735688001398,2.6381,189.88,189.84,5.8786]
[1735688003905,12.03130819,189.93,189.85,3.24]
[1735688004201,2.6383,189.87,189.85,3.24]
[1735688006306,12.03130819,189.97,189.85,3.24]
[1735688006606,12.03130819,189.97,189.86,1.4929]
[1735688007311,1.4992,189.98,189.87,3.24]
[1735688007312,12.03130819,189.94,189.87,3.24]
[1735688008110,2.6375,189.92,189.87,3.24]
[1735688008315,12.03130819,189.94,189.87,3.24]
[1735688008707,2.6379,189.9,189.87,3.24]
[1735688009305,12.03130819,189.94,189.87,3.24]
[1735688010208,2.6375,189.92,189.87,3.24]
[1735688010511,12.03130819,189.94,189.87,3.24]
[1735688010807,2.6378,189.9,189.87,3.24]
[1735688011311,12.03130819,189.94,189.87,3.24]
[1735688011511,2.6379,189.89,189.87,3.24]
[1735688012511,2.6381,189.88,189.87,3.24]
[1735688020919,2.6378,189.9,189.87,3.24]
[1735688021120,2.6378,189.9,189.87,5.8781]
[1735688022626,7.68633567,189.96,189.9,2.6377]
[1735688023626,7.68633567,189.96,189.88,1.5637]
[1735688023827,7.68633567,189.96,189.89,2.6379]
[1735688024232,12.00499493,189.98,189.89,2.6379]
[1735688024528,12.00499493,189.98,189.9,2.6378]
[1735688024728,2.6375,189.93,189.9,2.6378]
[1735688029633,2.6375,189.92,189.9,2.6378]
[1735688030536,12.00499493,189.98,189.88,1.5637]
[1735688030733,12.00499493,189.98,189.89,3.26]
[1735688031036,12.00499493,189.95,189.88,1.5637]
[1735688031235,2.6381,189.88,189.86,4.1312]
[1735688031437,12.00499493,189.95,189.83,1.6241]
[1735688031736,12.00499493,189.95,189.84,3.26]
[1735688032131,12.00499493,189.95,189.85,2.6384]
[1735688032731,2.6382,189.88,189.85,2.6384]
[1735688035039,2.6382,189.87,189.85,2.6384]
[1735688035340,21.42347617,189.94,189.84,3.26]
[1735688035539,21.42347617,189.94,189.86,2.6383]
[1735688035934,2.638,189.89,189.86,2.6383]
[1735688036538,2.6381,189.88,189.86,2.6383]
[1735688037951,2.6379,189.9,189.87,2.6382]
[1735688038746,21.42347617,189.95,189.81,3.2363]
[1735688038952,12.00499493,189.88,189.77,1.5863]
[1735688039151,12.00499493,189.88,189.78,3.26]
[1735688039542,2.6388,189.83,189.79,2.6392]
[1735688040059,2.6388,189.83,189.8,3.26]
[1735688043154,12.00499493,189.88,189.8,3.26]
[1735688043453,2.6389,189.82,189.8,3.26]
[1735688044045,2.6389,189.82,189.79,2.6392]
[1735688044246,2.6389,189.82,189.8,3.24]
[1735688050349,7.69130824,189.85,189.8,3.24]
[1735688050556,7.69130824,189.81,189.75,9.21360824]
[1735688051259,2.6396,189.78,189.75,11.85340824]
[1735688051860,2.6396,189.78,189.75,15.09340824]
[1735688053956,2.6396,189.78,189.75,12.45360824]
[1735688054260,2.6396,189.78,189.76,2.6397]
[1735688056658,2.6393,189.79,189.76,2.6397]
[1735688057158,2.6395,189.78,189.76,2.6397]
[1735688060068,2.6394,189.79,189.76,2.6397]
[1735688061464,2.6396,189.78,189.75,2.6399]
[1735688061670,2.6396,189.78,189.75,5.8799]
[1735688062271,2.6397,189.76,189.75,3.24]
[1735688062467,2.6397,189.76,189.73,3.24]
[1735688062764,2.6397,189.76,189.73,5.8801]
[1735688063269,2.6397,189.77,189.74,2.64]
[1735688063471,5.2769,189.86,189.73,10.93130824]
[1735688063770,7.69130824,189.8,189.73,10.93130824]
[1735688064265,2.6395,189.78,189.75,2.6398]
[1735688064461,7.69130824,189.8,189.73,10.93130824]
[1735688065169,2.64,189.75,189.71,1.62]
[1735688065472,2.64,189.75,189.71,4.86]
[1735688065972,2.64,189.75,189.72,2.6403]
[1735688066566,7.69130824,189.78,189.71,7.5003]
[1735688067166,2.6399,189.75,189.72,2.6403]
[1735688068573,7.69130824,189.78,189.72,2.6403]
[1735688069271,21.42347617,189.84,189.71,12.55130824]
[1735688069476,2.6395,189.78,189.73,7.69130824]
[1735688069777,7.69130824,189.81,189.73,7.69130824]
[1735688070175,2.6394,189.79,189.73,7.69130824]
[1735688070772,7.69130824,189.81,189.73,7.69130824]
[1735688070977,2.6395,189.78,189.75,2.6398]
[1735688072678,7.69130824,189.79,189.71,12.55130824]
[1735688072879,7.69130824,189.77,189.71,4.8]
[1735688073383,2.6399,189.75,189.72,2.6402]
[1735688076079,2.6399,189.75,189.73,2.6401]
[1735688077285,2.6403,189.73,189.71,4.8]
[1735688077482,7.69130824,189.75,189.7,3.18]
[1735688078184,2.6402,189.73,189.7,3.18]
[1735688078482,2.6402,189.73,189.69,5.8206]
[1735688079684,2.6402,189.73,189.7,2.6405]
[1735688085486,2.6402,189.73,189.71,2.6404]
[1735688086485,1.5925,189.81,189.73,2.6401]
[1735688086693,21.42347617,189.82,189.77,7.69130824]
[1735688086894,21.42347617,189.82,189.77,10.87130824]
[1735688087885,93.95140291,189.85,189.77,10.87130824]
[1735688087886,7.69130824,189.85,189.77,10.87130824]
[1735688088086,7.69130824,189.85,189.78,2.6394]
[1735688088286,7.69130824,189.83,189.77,10.87130824]
[1735688088692,2.6391,189.81,189.77,13.51080824]
[1735688089091,7.69130824,189.83,189.77,10.87130824]
[1735688089286,2.6393,189.8,189.77,10.87130824]
[1735688089892,2.6393,189.8,189.77,3.18]
[1735688090093,2.6393,189.8,189.77,5.8196]
[1735688095493,2.6392,189.8,189.77,5.8196]
[1735688096891,7.69130824,189.83,189.77,3.18]
[1735688097094,2.639,189.82,189.79,2.6393]
[1735688100804,2.639,189.82,189.79,5.8193]
[1735688101001,7.69130824,189.83,189.79,3.18]
[1735688101200,7.69130824,189.81,189.76,1.6309]
[1735688101500,7.69130824,189.81,189.76,4.8109]
[1735688101993,2.6396,189.77,189.74,10.33130824]
[1735688102196,2.6396,189.77,189.75,3.18]
[1735688105602,2.6397,189.76,189.72,2.6402]
[1735688105799,7.69130824,189.77,189.73,3.12]
[1735688106203,10.33130824,189.75,189.71,2.6404]
[1735688108202,10.33130824,189.75,189.72,2.6403]
[1735688110703,2.64,189.74,189.71,2.6404]
[1735688114408,7.69130824,189.75,189.7,3.12]
[1735688114607,2.6403,189.73,189.7,5.7606]
[1735688114811,2.6403,189.73,189.7,3.12]
[1735688115018,2.6403,189.73,189.67,9.30730824]
[1735688115019,7.69130824,189.73,189.69,3.12]
[1735688115310,7.69130824,189.73,189.68,3.12]
[1735688116215,2.6404,189.72,189.68,3.12]
[1735688116511,7.69130824,189.73,189.67,9.30730824]
[1735688116712,2.6405,189.71,189.67,15.06830824]
[1735688117208,2.6403,189.72,189.68,2.6407]
[1735688117512,2.6403,189.72,189.67,12.42730824]
[1735688118512,2.6403,189.72,189.68,2.6408]
[1735688118714,7.69130824,189.72,189.68,2.6408]
[1735688118916,2.6406,189.7,189.66,2.641]
[1735688119510,2.6406,189.7,189.65,7.69130824]
[1735688119713,2.6406,189.7,189.67,2.641]
[1735688120308,7.69130824,189.7,189.59,43.91834998]
[1735688120517,7.69130824,189.64,189.56,1.5616]
[1735688120715,7.69130824,189.6,189.52,36.82886371]
[1735688121016,7.69130824,189.58,189.53,2.6428]
[1735688121217,1.4962,189.68,189.51,29.13755547]
[1735688121519,7.69130824,189.64,189.56,7.69130824]
[1735688121711,7.69130824,189.62,189.54,10.83130824]
[1735688121916,2.6421,189.59,189.54,5.7827]
[1735688122112,2.6421,189.59,189.54,2.6427]
[1735688122619,4.6362,189.68,189.5,4.6812]
[1735688122819,7.69130824,189.6,189.53,7.69130824]
[1735688123024,7.69130824,189.6,189.53,10.83130824]
[1735688123413,2.6424,189.58,189.53,13.47420824]
[1735688124518,2.6424,189.58,189.53,5.7829]
[1735688125215,10.33370824,189.58,189.53,2.6429]
[1735688125422,2.6425,189.57,189.53,3.14]
[1735688125627,10.33380824,189.57,189.53,3.14]
[1735688126114,2.6425,189.56,189.52,2.6431]
[1735688126416,7.69130824,189.57,189.5,1.6075]
[1735688126823,2.6425,189.56,189.51,7.69130824]
[1735688128320,7.69130824,189.58,189.5,4.6977]
[1735688128521,3.14,189.63,189.5,4.6977]
[1735688128522,2.6429,189.54,189.5,4.6977]
[1735688128720,7.69130824,189.56,189.5,4.6977]
[1735688129118,2.6427,189.55,189.51,2.6432]
[1735688131612,7.69130824,189.56,189.5,4.6977]
[1735688131817,7.69130824,189.54,189.5,1.6075]
[1735688132129,7.69130824,189.52,189.47,3.16]
[1735688132325,2.6435,189.5,189.47,3.16]
[1735688133420,2.643,189.53,189.48,2.6435]
[1735688133625,2.643,189.53,189.48,4.1508]
[1735688134028,2.6431,189.52,189.48,4.1508]
[1735688136227,2.6433,189.51,189.48,4.6673]
[1735688140331,2.6433,189.51,189.47,2.6437]
[1735688140530,2.6433,189.51,189.47,5.8037]
[1735688141131,7.69130824,189.52,189.47,5.8037]
[1735688141333,2.6434,189.5,189.47,5.8037]
[1735688142733,5.2832,189.63,189.47,10.85130824]
[1735688142932,5.2832,189.63,189.51,2.6431]
[1735688142933,2.6427,189.55,189.51,2.6431]
[1735688143724,2.6427,189.55,189.52,3.16]
[1735688144325,1.5859,189.65,189.53,7.69130824]
[1735688144630,7.69130824,189.6,189.53,7.69130824]
[1735688144833,2.6423,189.58,189.55,2.6426]
[1735688145332,2.6423,189.58,189.54,2.6427]
[1735688145537,10.33360824,189.58,189.54,2.6427]
[1735688145730,7.69130824,189.56,189.52,3.16]
[1735688147537,2.6428,189.55,189.52,5.803]
[1735688148437,0.1765,189.55,189.52,2.643]
[1735688148637,7.69130824,189.57,189.53,3.16]
[1735688148937,7.69130824,189.57,189.52,2.643]
[1735688149142,10.33410824,189.55,189.53,3.16]
[1735688149339,7.69130824,189.55,189.53,3.16]
[1735688149642,2.6428,189.55,189.53,3.16]
[1735688151742,7.69130824,189.56,189.53,3.16]
[1735688152040,2.6428,189.54,189.53,3.16]
[1735688161453,21.42347617,189.63,189.53,3.16]
[1735688161649,21.42347617,189.63,189.53,5.8028]
[1735688161855,7.69130824,189.6,189.53,13.49410824]
[1735688162158,7.69130824,189.58,189.51,1.6014]
[1735688162456,28.26477617,189.65,189.52,5.803]
[1735688162658,7.69130824,189.58,189.52,5.803]
[1735688165057,2.642,189.6,189.52,5.803]
[1735688165358,7.69130824,189.58,189.52,5.803]
[1735688166461,2.6428,189.55,189.52,5.803]
[1735688166854,7.69130824,189.58,189.53,3.16]
[1735688167050,7.69130824,189.58,189.5,3.2448]
[1735688167253,7.69130824,189.56,189.53,3.16]
[1735688167457,7.69130824,189.54,189.5,1.6222]
[1735688167656,7.69130824,189.54,189.51,3.16]
[1735688168058,2.643,189.53,189.51,3.16]
[1735688169661,2.643,189.53,189.51,5.8032]
[1735688170162,7.69130824,189.56,189.48,7.69130824]
[1735688170361,7.69130824,189.56,189.49,3.16]
[1735688170862,2.6433,189.51,189.49,3.16]
[1735688171762,2.6434,189.5,189.48,2.6436]
[1735688171961,2.6434,189.5,189.49,3.16]
[1735688173758,7.69130824,189.56,189.49,3.16]
[1735688174064,2.6434,189.5,189.49,3.16]
[1735688175358,21.42347617,189.58,189.49,3.16]
[1735688175561,21.42347617,189.58,189.52,7.69130824]
[1735688175860,2.6428,189.54,189.52,7.69130824]
[1735688176066,29.11478441,189.59,189.49,3.16]
[1735688176266,29.11478441,189.59,189.51,7.69130824]
[1735688176968,2.6424,189.57,189.51,10.33440824]
[1735688177162,7.69130824,189.59,189.51,7.69130824]
[1735688177669,2.6428,189.55,189.52,2.643]
[1735688177868,7.69130824,189.59,189.51,7.69130824]
[1735688178070,11.65686563,189.61,189.53,7.69130824]
[1735688178271,11.65686563,189.61,189.54,3.16]
[1735688179275,7.69130824,189.59,189.52,7.69130824]
[1735688179473,7.69130824,189.59,189.52,10.85130824]
[1735688179667,2.6429,189.54,189.52,3.16]
[1735688179865,2.6429,189.54,189.52,10.85130824]
[1735688180671,7.69130824,189.59,189.52,7.69130824]
[1735688180877,7.69130824,189.59,189.53,3.16]
[1735688182577,2.6429,189.54,189.53,3.16]
[1735688187471,2.6431,189.52,189.5,2.6433]
[1735688187869,7.69130824,189.55,189.49,3.16]
[1735688188075,2.6434,189.5,189.49,3.16]
[1735688192375,7.69130824,189.54,189.47,7.69130824]
[1735688192582,2.6436,189.49,189.48,3.12]
[1735688192978,2.6436,189.49,189.45,10.33530824]
[1735688193176,2.6436,189.49,189.47,3.12]
[1735688193378,2.6439,189.46,189.44,4.6254]
[1735688193579,2.6439,189.46,189.44,3.12]
[1735688194681,7.69130824,189.48,189.44,3.12]
[1735688194879,2.6441,189.45,189.44,3.12]
[1735688195081,2.6441,189.45,189.43,3.12]
[1735688195277,2.6443,189.44,189.43,3.12]
[1735688198576,2.6432,189.52,189.43,5.7643]
[1735688198781,7.69130824,189.55,189.48,7.69130824]
[1735688198980,21.42347617,189.56,189.5,7.69130824]
[1735688199186,24.06607617,189.56,189.52,10.33440824]
[1735688199380,24.06607617,189.56,189.53,3.12]
[1735688199589,21.42347617,189.56,189.53,3.12]
[1735688199786,2.6427,189.55,189.53,3.12]
[1735688200788,2.6424,189.58,189.53,3.12]
[1735688201089,7.69130824,189.59,189.53,3.12]
[1735688201288,2.6428,189.55,189.53,3.12]
[1735688204187,2.6428,189.54,189.53,3.12]
[1735688204390,7.69130824,189.59,189.53,3.12]
[1735688204590,2.6427,189.55,189.53,3.12]
[1735688208888,3.96576241,189.61,189.51,7.69130824]
[1735688208889,2.6429,189.53,189.51,7.69130824]
[1735688209085,7.69130824,189.55,189.51,3.12]
[1735688209485,2.6437,189.48,189.44,3.12]
[1735688209689,7.69130824,189.51,189.45,3.12]
[1735688210096,2.6439,189.47,189.45,3.12]
[1735688211698,2.6437,189.48,189.45,3.12]
[1735688212299,7.69130824,189.46,189.38,27.22642825]
[1735688212496,7.69130824,189.48,189.39,9.20920824]
[1735688212800,2.6441,189.45,189.41,2.6445]
[1735688214199,2.6442,189.44,189.39,11.85400824]
[1735688214400,2.6442,189.44,189.39,4.1627]
[1735688214600,2.6442,189.44,189.39,11.85400824]
[1735688215104,7.69130824,189.46,189.39,7.69130824]
[1735688216099,2.6446,189.42,189.39,7.69130824]
[1735688218409,7.69130824,189.46,189.38,27.22642825]
[1735688218613,7.69130824,189.46,189.39,7.69130824]
[1735688219412,2.6442,189.44,189.4,2.6447]
[1735688220807,7.69130824,189.46,189.39,7.69130824]
[1735688221008,7.69130824,189.46,189.4,3.12]
[1735688221709,2.6444,189.43,189.4,10.81130824]
[1735688225015,7.69130824,189.46,189.4,10.81130824]
[1735688225215,2.6445,189.42,189.4,10.81130824]
[1735688228919,2.6445,189.42,189.4,3.12]
[1735688229411,1.5978,189.49,189.4,3.12]
[1735688229617,2.6445,189.42,189.4,3.12]
[1735688229916,7.69130824,189.45,189.4,3.12]
[1735688230115,7.69130824,189.43,189.38,24.10642825]
[1735688230312,2.6449,189.4,189.38,27.22642825]
[1735688230516,7.69130824,189.43,189.38,27.22642825]
[1735688230714,2.6449,189.39,189.38,27.22642825]
[1735688230914,7.69130824,189.44,189.38,27.22642825]
[1735688231109,1.5978,189.49,189.41,2.6446]
[1735688231315,7.69130824,189.47,189.41,10.33590824]
[1735688231714,2.6443,189.44,189.41,10.33590824]
[1735688232513,2.644,189.46,189.43,2.6442]
[1735688232715,2.644,189.46,189.43,13.45550824]
[1735688233313,1.6034,189.54,189.43,10.81130824]
[1735688233520,7.69130824,189.51,189.43,10.81130824]
[1735688234016,1.6034,189.54,189.43,10.81130824]
[1735688234017,7.69130824,189.55,189.47,7.69130824]
[1735688234221,7.69130824,189.55,189.48,3.12]
[1735688234919,7.69130824,189.53,189.47,3.12]
[1735688235115,7.69130824,189.53,189.47,10.81130824]
[1735688236518,2.6432,189.52,189.48,2.6436]
[1735688236920,7.69130824,189.53,189.47,3.12]
[1735688237313,2.6432,189.52,189.47,3.12]
[1735688237618,7.69130824,189.53,189.47,3.12]
[1735688237814,2.6433,189.51,189.47,5.7638]
[1735688238010,2.6433,189.51,189.48,3.12]
[1735688238212,7.69130824,189.54,189.48,3.12]
[1735688239824,7.69130824,189.52,189.48,3.12]
[1735688241620,2.6435,189.5,189.48,3.12]
[1735688243121,3.96664513,189.58,189.49,2.6434]
[1735688243122,2.6432,189.52,189.49,2.6434]
[1735688244325,7.69130824,189.56,189.48,3.12]
[1735688244524,2.6431,189.53,189.5,2.6434]
[1735688245919,2.6432,189.52,189.49,2.6436]
[1735688246624,7.69130824,189.56,189.48,3.12]
[1735688246824,7.69130824,189.54,189.48,3.12]
[1735688247430,2.6436,189.5,189.48,3.12]
[1735688247720,7.69130824,189.52,189.45,7.69130824]
[1735688247925,2.644,189.47,189.44,3.12]
[1735688248128,7.69130824,189.5,189.44,3.12]
[1735688248826,2.644,189.47,189.44,3.12]
[1735688249430,7.69130824,189.5,189.43,7.69130824]
[1735688249726,7.69130824,189.5,189.43,3.12]
[1735688250223,2.6443,189.45,189.41,2.6447]
[1735688250524,7.69130824,189.48,189.41,3.12]
[1735688250930,7.69130824,189.48,189.4,9.29080824]
[1735688251227,7.69130824,189.48,189.4,12.41080824]
[1735688251423,2.6446,189.43,189.4,12.41080824]
[1735688252025,7.69130824,189.46,189.38,34.91773649]
[1735688252727,2.6447,189.42,189.38,37.56283649]
[1735688253629,2.6448,189.41,189.38,37.56283649]
[1735688254022,7.69130824,189.46,189.38,37.56283649]
[1735688254329,2.6446,189.42,189.38,37.56283649]
[1735688256329,2.6446,189.42,189.38,26.75152825]
[1735688256629,7.69130824,189.46,189.39,3.14]
[1735688256630,2.6449,189.4,189.39,3.14]
[1735688256831,7.69130824,189.46,189.39,3.14]
[1735688257030,2.6443,189.44,189.41,7.69130824]
[1735688258029,2.6442,189.46,189.42,2.6445]
[1735688258625,2.6442,189.45,189.42,2.6445]
[1735688260533,2.6445,189.43,189.41,3.14]
[1735688261630,2.6446,189.42,189.39,2.645]
[1735688261834,2.6446,189.42,189.39,5.785]
[1735688262030,7.69130824,189.46,189.39,3.14]
[1735688262336,7.69130824,189.46,189.38,31.79773649]
[1735688262530,7.69130824,189.44,189.38,34.93773649]
[1735688263028,2.645,189.4,189.38,27.24642825]
[1735688264639,7.69130824,189.44,189.38,27.24642825]
[1735688264939,2.645,189.39,189.38,27.24642825]
[1735688265439,2.645,189.39,189.38,24.10642825]
[1735688273037,91.54669467,189.52,189.4,2.6449]
[1735688273239,64.76914326,189.5,189.42,7.69130824]
[1735688273638,2.6439,189.48,189.44,2.6443]
[1735688273838,64.76914326,189.5,189.42,7.69130824]
[1735688274546,2.644,189.47,189.44,2.6442]
[1735688276336,2.6443,189.45,189.41,2.6447]
[1735688279545,7.69130824,189.44,189.38,24.10642825]
[1735688279754,7.69130824,189.4,189.38,24.10642825]
[1735688280448,2.645,189.39,189.38,24.10642825]
[1735688284548,21.42347617,189.47,189.38,27.28642825]
[1735688284745,7.69130824,189.45,189.38,27.28642825]
[1735688285353,2.6445,189.44,189.4,2.6449]
[1735688285647,3.18,189.49,189.38,27.28642825]
[1735688285850,7.69130824,189.44,189.38,27.28642825]
[1735688286246,10.33580824,189.44,189.4,2.6449]
[1735688286445,10.33580824,189.44,189.38,27.28642825]
[1735688286446,7.69130824,189.44,189.38,27.28642825]
[1735688287048,2.6446,189.42,189.39,2.645]
[1735688289150,2.6444,189.44,189.4,2.6449]
[1735688289347,7.69130824,189.48,189.4,1.5124]
[1735688290047,7.69130824,189.48,189.41,7.69130824]
[1735688291050,2.644,189.47,189.43,2.6444]
[1735688291251,7.69130824,189.48,189.4,9.20370824]
[1735688292853,7.69130824,189.48,189.41,3.18]
[1735688293048,2.6442,189.46,189.43,2.6444]
[1735688293256,7.69130824,189.49,189.41,10.87130824]
[1735688293953,2.6441,189.47,189.41,10.87130824]
[1735688294458,7.69130824,189.51,189.43,7.69130824]
[1735688294652,2.6441,189.46,189.43,10.33570824]
[1735688297659,2.6441,189.46,189.43,2.6444]
[1735688299357,11.06765878,189.53,189.43,7.69130824]
[1735688299559,2.6434,189.51,189.45,7.69130824]
[1735688299757,29.11478441,189.54,189.47,7.69130824]
[1735688299954,21.42347617,189.54,189.49,7.69130824]
[1735688300155,7.69130824,189.52,189.5,3.18]
[1735688300860,2.6434,189.51,189.5,3.18]
[1735688304674,2.644,189.47,189.46,3.18]
[1735688304966,7.69130824,189.47,189.44,3.18]
[1735688305865,2.6444,189.44,189.41,5.8247]
[1735688307065,7.69130824,189.49,189.43,2.6445]
[1735688307262,7.69130824,189.51,189.43,7.69130824]
[1735688307665,2.6437,189.49,189.43,7.69130824]
[1735688308665,7.69130824,189.51,189.43,7.69130824]
[1735688308865,2.6438,189.48,189.45,2.6441]
[1735688309058,7.69130824,189.51,189.46,3.18]
[1735688309462,2.6439,189.47,189.46,3.18]
[1735688309970,10.87130824,189.47,189.25,145.63216547]
[1735688310171,7.69130824,189.39,189.3,10.78880824]
[1735688310672,10.33630824,189.39,189.3,10.78880824]
[1735688311058,10.33630824,189.39,189.38,21.46142825]
[1735688312158,11.13865556,189.39,189.38,21.46142825]
[1735688312965,11.13868865,189.39,189.38,21.46142825]
[1735688313765,11.13868865,189.39,189.38,18.99432825]